[Event "Titled Tuesday Blitz August 22 Late 2023"]
[White "Kramnik, Vladimir"]
[Black "Bluebaum, Matthias"]
[WhiteFideId "4101588"]
[BlackFideId "24651516"]
[WhiteElo "2934"]
[BlackElo "3031"]
[Result "1/2-1/2"]
[Round "7"]
[TimeControl "180+1"]
[Date "2023.08.22"]
[WhiteClock "0:00:07"]
[BlackClock "0:00:09"]
[Board "7"]

1. d4 {[%clk 0:03:00]}  d5 {[%clk 0:03:00]} 2. Nf3 {[%clk 0:03:00]}  e6 {[%clk 0:03:00]} 3. e3 {[%clk 0:02:59]}  Nf6 {[%clk 0:02:58]} 4. Bd3 {[%clk 0:02:57]}  Bd6 {[%clk 0:02:59]} 5. Nbd2 {[%clk 0:02:56]}  Nbd7 {[%clk 0:02:56]} 6. c4 {[%clk 0:02:56]}  b6 {[%clk 0:02:50]} 7. O-O {[%clk 0:02:48]}  Bb7 {[%clk 0:02:49]} 8. b3 {[%clk 0:02:43]}  O-O {[%clk 0:02:49]} 9. Bb2 {[%clk 0:02:43]}  Qe7 {[%clk 0:02:38]} 10. Rc1 {[%clk 0:02:36]}  c5 {[%clk 0:02:29]} 11. cxd5 {[%clk 0:02:32]}  exd5 {[%clk 0:02:29]} 12. Bf5 {[%clk 0:02:28]}  Rfd8 {[%clk 0:02:26]} 13. dxc5 {[%clk 0:02:18]}  bxc5 {[%clk 0:02:26]} 14. Qc2 {[%clk 0:02:15]}  Nf8 {[%clk 0:02:22]} 15. Rfe1 {[%clk 0:02:07]}  Re8 {[%clk 0:01:48]} 16. g3 {[%clk 0:01:57]}  Rad8 {[%clk 0:01:45]} 17. Bh3 {[%clk 0:01:54]}  Ne6 {[%clk 0:01:23]} 18. Bg2 {[%clk 0:01:42]}  Ne4 {[%clk 0:01:23]} 19. Rcd1 {[%clk 0:01:35]}  h6 {[%clk 0:01:19]} 20. h4 {[%clk 0:01:32]}  Nxg3 {[%clk 0:00:58]} 21. fxg3 {[%clk 0:01:27]}  Bxg3 {[%clk 0:00:59]} 22. Nf1 {[%clk 0:01:22]}  Bxh4 {[%clk 0:00:55]} 23. Nxh4 {[%clk 0:01:20]}  Qxh4 {[%clk 0:00:56]} 24. Qf2 {[%clk 0:01:18]}  Qe7 {[%clk 0:00:52]} 25. Ng3 {[%clk 0:01:16]}  d4 {[%clk 0:00:47]} 26. exd4 {[%clk 0:01:09]}  Bxg2 {[%clk 0:00:47]} 27. Qxg2 {[%clk 0:01:05]}  cxd4 {[%clk 0:00:47]} 28. Bxd4 {[%clk 0:00:53]}  Qd7 {[%clk 0:00:27]} 29. Nh5 {[%clk 0:00:44]}  Ng5 {[%clk 0:00:22]} 30. Bxg7 {[%clk 0:00:28]}  Qxd1 {[%clk 0:00:21]} 31. Nf6+ {[%clk 0:00:26]}  Kxg7 {[%clk 0:00:20]} 32. Nxe8+ {[%clk 0:00:27]}  Kf8 {[%clk 0:00:19]} 33. Rxd1 {[%clk 0:00:26]}  Rxd1+ {[%clk 0:00:20]} 34. Kh2 {[%clk 0:00:26]}  Rd2 {[%clk 0:00:20]} 35. Qxd2 {[%clk 0:00:18]}  Nf3+ {[%clk 0:00:21]} 36. Kg3 {[%clk 0:00:19]}  Nxd2 {[%clk 0:00:22]} 37. Nd6 {[%clk 0:00:19]}  Ke7 {[%clk 0:00:10]} 38. Nc8+ {[%clk 0:00:18]}  Ke6 {[%clk 0:00:09]} 39. Nxa7 {[%clk 0:00:18]}  f5 {[%clk 0:00:08]} 40. Kf4 {[%clk 0:00:16]}  Ne4 {[%clk 0:00:07]} 41. Nb5 {[%clk 0:00:16]}  Nc5 {[%clk 0:00:05]} 42. Nd4+ {[%clk 0:00:16]}  Kd5 {[%clk 0:00:06]} 43. Nxf5 {[%clk 0:00:16]}  Nd3+ {[%clk 0:00:07]} 44. Ke3 {[%clk 0:00:09]}  Nc1 {[%clk 0:00:08]} 45. Kd2 {[%clk 0:00:05]}  Nxa2 {[%clk 0:00:08]} 46. Nxh6 {[%clk 0:00:05]}  Nb4 {[%clk 0:00:08]} 47. Nf5 {[%clk 0:00:04]}  Nc6 {[%clk 0:00:08]} 48. Kc3 {[%clk 0:00:04]}  Na5 {[%clk 0:00:08]} 49. Ne3+ {[%clk 0:00:04]}  Kc6 {[%clk 0:00:04]} 50. b4 {[%clk 0:00:04]}  Nb7 {[%clk 0:00:05]} 51. Nf5 {[%clk 0:00:03]}  Nd8 {[%clk 0:00:04]} 52. Kc4 {[%clk 0:00:02]}  Kb6 {[%clk 0:00:04]} 53. Ne7 {[%clk 0:00:02]}  Nc6 {[%clk 0:00:04]} 54. Nxc6 {[%clk 0:00:02]}  Kxc6 {[%clk 0:00:05]} 55. b5+ {[%clk 0:00:03]}  Kb6 {[%clk 0:00:05]} 56. Kb4 {[%clk 0:00:03]}  Kb7 {[%clk 0:00:06]} 57. Kc5 {[%clk 0:00:04]}  Kc7 {[%clk 0:00:07]} 58. b6+ {[%clk 0:00:04]}  Kb7 {[%clk 0:00:07]} 59. Kb5 {[%clk 0:00:05]}  Kb8 {[%clk 0:00:08]} 60. Ka6 {[%clk 0:00:06]}  Ka8 {[%clk 0:00:09]} 61. b7+ {[%clk 0:00:06]}  Kb8 {[%clk 0:00:09]} 62. Kb6 {[%clk 0:00:07]} 1/2-1/2


[Site "https://www.chess.com"]

[Event "Titled Tuesday Blitz August 22 Late 2023"]
[White "Grischuk, Alexander"]
[Black "Kravtsiv, Martyn"]
[WhiteFideId "4126025"]
[BlackFideId "14113147"]
[WhiteElo "3010"]
[BlackElo "2894"]
[Result "1/2-1/2"]
[Round "7"]
[TimeControl "180+1"]
[Date "2023.08.22"]
[WhiteClock "0:00:04"]
[BlackClock "0:00:06"]
[Board "9"]

1. d4 {[%clk 0:03:00]}  Nf6 {[%clk 0:03:00]} 2. Nf3 {[%clk 0:03:01]}  e6 {[%clk 0:03:00]} 3. c4 {[%clk 0:02:59]}  d5 {[%clk 0:03:01]} 4. Nc3 {[%clk 0:02:58]}  Bb4 {[%clk 0:02:59]} 5. Bg5 {[%clk 0:02:57]}  Nbd7 {[%clk 0:02:59]} 6. e3 {[%clk 0:02:57]}  c5 {[%clk 0:02:58]} 7. cxd5 {[%clk 0:02:57]}  exd5 {[%clk 0:02:58]} 8. Bd3 {[%clk 0:02:51]}  Qa5 {[%clk 0:02:58]} 9. Qc2 {[%clk 0:02:51]}  c4 {[%clk 0:02:48]} 10. Bf5 {[%clk 0:02:51]}  O-O {[%clk 0:02:48]} 11. O-O {[%clk 0:02:51]}  Re8 {[%clk 0:02:46]} 12. Nd2 {[%clk 0:02:50]}  g6 {[%clk 0:02:39]} 13. Bh3 {[%clk 0:02:50]}  Kg7 {[%clk 0:02:36]} 14. Rae1 {[%clk 0:02:40]}  Bxc3 {[%clk 0:02:13]} 15. bxc3 {[%clk 0:02:38]}  Ne4 {[%clk 0:02:13]} 16. Nxe4 {[%clk 0:02:35]}  dxe4 {[%clk 0:02:13]} 17. Bf4 {[%clk 0:02:28]}  Nb6 {[%clk 0:02:13]} 18. Bxc8 {[%clk 0:02:28]}  Raxc8 {[%clk 0:02:14]} 19. f3 {[%clk 0:02:29]}  Nd5 {[%clk 0:01:14]} 20. fxe4 {[%clk 0:02:13]}  Qxc3 {[%clk 0:01:12]} 21. Qf2 {[%clk 0:02:07]}  Nxf4 {[%clk 0:01:11]} 22. Qxf4 {[%clk 0:01:59]}  Rf8 {[%clk 0:01:11]} 23. e5 {[%clk 0:01:39]}  Qa5 {[%clk 0:00:47]} 24. Qf6+ {[%clk 0:01:30]}  Kg8 {[%clk 0:00:48]} 25. e6 {[%clk 0:01:31]}  fxe6 {[%clk 0:00:48]} 26. Qxe6+ {[%clk 0:01:30]}  Kh8 {[%clk 0:00:48]} 27. Qe7 {[%clk 0:00:55]}  Kg8 {[%clk 0:00:31]} 28. Qxb7 {[%clk 0:00:49]}  c3 {[%clk 0:00:31]} 29. Rxf8+ {[%clk 0:00:37]}  Rxf8 {[%clk 0:00:30]} 30. Qb3+ {[%clk 0:00:37]}  Kh8 {[%clk 0:00:30]} 31. Rc1 {[%clk 0:00:36]}  Rc8 {[%clk 0:00:17]} 32. h3 {[%clk 0:00:35]}  Rc7 {[%clk 0:00:14]} 33. Kh1 {[%clk 0:00:33]}  Kg7 {[%clk 0:00:14]} 34. e4 {[%clk 0:00:29]}  Qa6 {[%clk 0:00:15]} 35. Rxc3 {[%clk 0:00:07]}  Qf1+ {[%clk 0:00:14]} 36. Kh2 {[%clk 0:00:07]}  Qf4+ {[%clk 0:00:14]} 37. Kg1 {[%clk 0:00:04]}  Rxc3 {[%clk 0:00:12]} 38. Qxc3 {[%clk 0:00:05]}  Qxe4 {[%clk 0:00:12]} 39. Qc7+ {[%clk 0:00:04]}  Kf6 {[%clk 0:00:12]} 40. Qd6+ {[%clk 0:00:04]}  Kf7 {[%clk 0:00:11]} 41. d5 {[%clk 0:00:04]}  Qb1+ {[%clk 0:00:09]} 42. Kh2 {[%clk 0:00:04]}  Qxa2 {[%clk 0:00:09]} 43. Qe6+ {[%clk 0:00:04]}  Kg7 {[%clk 0:00:09]} 44. Qe7+ {[%clk 0:00:05]}  Kg8 {[%clk 0:00:08]} 45. d6 {[%clk 0:00:04]}  Qc4 {[%clk 0:00:08]} 46. Qf6 {[%clk 0:00:03]}  Qd5 {[%clk 0:00:07]} 47. Qe7 {[%clk 0:00:02]}  Qd4 {[%clk 0:00:08]} 48. d7 {[%clk 0:00:02]}  Qf4+ {[%clk 0:00:08]} 49. Kg1 {[%clk 0:00:02]}  Qd4+ {[%clk 0:00:08]} 50. Kf1 {[%clk 0:00:03]}  Qc4+ {[%clk 0:00:08]} 51. Kf2 {[%clk 0:00:03]}  Qd4+ {[%clk 0:00:08]} 52. Ke2 {[%clk 0:00:03]}  Qc4+ {[%clk 0:00:08]} 53. Ke3 {[%clk 0:00:04]}  Qc3+ {[%clk 0:00:08]} 54. Kf4 {[%clk 0:00:04]}  Qd4+ {[%clk 0:00:08]} 55. Kf3 {[%clk 0:00:03]}  Qd3+ {[%clk 0:00:08]} 56. Kf2 {[%clk 0:00:04]}  Qd2+ {[%clk 0:00:08]} 57. Kg3 {[%clk 0:00:04]}  Qc3+ {[%clk 0:00:06]} 58. Kh2 {[%clk 0:00:02]}  Qc7+ {[%clk 0:00:06]} 59. Kg1 {[%clk 0:00:02]}  Qc1+ {[%clk 0:00:06]} 60. Kf2 {[%clk 0:00:03]}  Qd2+ {[%clk 0:00:06]} 61. Kf3 {[%clk 0:00:03]}  Qd3+ {[%clk 0:00:07]} 62. Kf4 {[%clk 0:00:03]}  Qd4+ {[%clk 0:00:06]} 63. Kg3 {[%clk 0:00:03]}  Qc3+ {[%clk 0:00:06]} 64. Kg4 {[%clk 0:00:04]}  Qd4+ {[%clk 0:00:06]} 65. Kf3 {[%clk 0:00:04]}  Qd3+ {[%clk 0:00:06]} 1/2-1/2


[Site "https://www.chess.com"]

[Event "Titled Tuesday Blitz August 22 Late 2023"]
[White "Xiong, Jeffery"]
[Black "Sjugirov, Sanan"]
[WhiteFideId "2047640"]
[BlackFideId "4189302"]
[WhiteElo "3005"]
[BlackElo "2886"]
[Result "1-0"]
[Round "7"]
[TimeControl "180+1"]
[Date "2023.08.22"]
[WhiteClock "0:00:27"]
[BlackClock "0:00:00"]
[Board "10"]

1. d4 {[%clk 0:03:00]}  Nf6 {[%clk 0:02:59]} 2. c4 {[%clk 0:02:56]}  e6 {[%clk 0:02:59]} 3. Nc3 {[%clk 0:02:56]}  d5 {[%clk 0:02:58]} 4. Nf3 {[%clk 0:02:55]}  c6 {[%clk 0:02:57]} 5. Bg5 {[%clk 0:02:52]}  Nbd7 {[%clk 0:02:56]} 6. e3 {[%clk 0:02:51]}  h6 {[%clk 0:02:56]} 7. Bh4 {[%clk 0:02:38]}  Be7 {[%clk 0:02:56]} 8. cxd5 {[%clk 0:02:35]}  exd5 {[%clk 0:02:55]} 9. Bd3 {[%clk 0:02:34]}  O-O {[%clk 0:02:55]} 10. O-O {[%clk 0:02:33]}  Re8 {[%clk 0:02:54]} 11. a3 {[%clk 0:02:01]}  Ne4 {[%clk 0:02:52]} 12. Bxe7 {[%clk 0:01:58]}  Qxe7 {[%clk 0:02:53]} 13. Qc2 {[%clk 0:01:56]}  Ndf6 {[%clk 0:02:46]} 14. Ne5 {[%clk 0:01:40]}  Bf5 {[%clk 0:02:45]} 15. Rfe1 {[%clk 0:01:31]}  Nxc3 {[%clk 0:02:40]} 16. bxc3 {[%clk 0:01:26]}  Bxd3 {[%clk 0:02:39]} 17. Nxd3 {[%clk 0:01:26]}  Ne4 {[%clk 0:01:51]} 18. c4 {[%clk 0:01:25]}  dxc4 {[%clk 0:01:51]} 19. Qxc4 {[%clk 0:01:26]}  Rad8 {[%clk 0:01:52]} 20. Rac1 {[%clk 0:01:17]}  Rd5 {[%clk 0:01:13]} 21. a4 {[%clk 0:01:14]}  Rg5 {[%clk 0:01:05]} 22. Qc2 {[%clk 0:01:11]}  Qf6 {[%clk 0:00:44]} 23. Ne5 {[%clk 0:01:07]}  Rexe5 {[%clk 0:00:26]} 24. dxe5 {[%clk 0:01:08]}  Qf3 {[%clk 0:00:27]} 25. g3 {[%clk 0:01:05]}  Rxe5 {[%clk 0:00:23]} 26. Qe2 {[%clk 0:01:05]}  Ng5 {[%clk 0:00:21]} 27. h4 {[%clk 0:01:02]}  Qxe2 {[%clk 0:00:04]} 28. Rxe2 {[%clk 0:01:03]}  Ne4 {[%clk 0:00:04]} 29. Rb2 {[%clk 0:00:59]}  Re7 {[%clk 0:00:03]} 30. a5 {[%clk 0:00:57]}  a6 {[%clk 0:00:03]} 31. g4 {[%clk 0:00:52]}  g6 {[%clk 0:00:03]} 32. f3 {[%clk 0:00:49]}  Nd6 {[%clk 0:00:03]} 33. e4 {[%clk 0:00:49]}  Nb5 {[%clk 0:00:04]} 34. Rd2 {[%clk 0:00:46]}  Kg7 {[%clk 0:00:04]} 35. Kf2 {[%clk 0:00:45]}  g5 {[%clk 0:00:03]} 36. Kg3 {[%clk 0:00:34]}  Nc7 {[%clk 0:00:03]} 37. Rcd1 {[%clk 0:00:32]}  Re5 {[%clk 0:00:02]} 38. Rd7 {[%clk 0:00:31]}  Ne6 {[%clk 0:00:00]} 39. Rxb7 {[%clk 0:00:27]} 1-0


[Site "https://www.chess.com"]

[Event "Titled Tuesday Blitz August 22 Late 2023"]
[White "Ghazarian, Kirk"]
[Black "Andreikin, Dmitry"]
[WhiteFideId "30908604"]
[BlackFideId "4158814"]
[WhiteElo "2763"]
[BlackElo "2990"]
[Result "0-1"]
[Round "7"]
[TimeControl "180+1"]
[Date "2023.08.22"]
[WhiteClock "0:00:01"]
[BlackClock "0:00:03"]
[Board "13"]

1. e4 {[%clk 0:03:00]}  c5 {[%clk 0:02:57]} 2. b3 {[%clk 0:03:01]}  g6 {[%clk 0:02:55]} 3. Bb2 {[%clk 0:03:01]}  Nf6 {[%clk 0:02:55]} 4. g3 {[%clk 0:02:53]}  Bg7 {[%clk 0:02:55]} 5. Bg2 {[%clk 0:02:52]}  d6 {[%clk 0:02:53]} 6. Ne2 {[%clk 0:02:52]}  O-O {[%clk 0:02:53]} 7. c4 {[%clk 0:02:47]}  Bg4 {[%clk 0:02:48]} 8. f3 {[%clk 0:02:43]}  Bd7 {[%clk 0:02:48]} 9. O-O {[%clk 0:02:38]}  b5 {[%clk 0:02:38]} 10. d3 {[%clk 0:02:28]}  a5 {[%clk 0:02:25]} 11. a4 {[%clk 0:02:25]}  bxa4 {[%clk 0:02:22]} 12. bxa4 {[%clk 0:02:26]}  Nc6 {[%clk 0:02:22]} 13. Na3 {[%clk 0:02:22]}  Nb4 {[%clk 0:02:20]} 14. Nb5 {[%clk 0:02:20]}  Bc6 {[%clk 0:02:20]} 15. Qd2 {[%clk 0:02:18]}  Nd7 {[%clk 0:02:16]} 16. Bxg7 {[%clk 0:02:15]}  Kxg7 {[%clk 0:02:17]} 17. f4 {[%clk 0:02:12]}  Nb6 {[%clk 0:02:08]} 18. h3 {[%clk 0:02:06]}  e5 {[%clk 0:01:47]} 19. Kh2 {[%clk 0:02:04]}  f6 {[%clk 0:01:47]} 20. h4 {[%clk 0:02:01]}  Qe7 {[%clk 0:01:43]} 21. f5 {[%clk 0:01:56]}  g5 {[%clk 0:01:41]} 22. hxg5 {[%clk 0:01:52]}  Bxb5 {[%clk 0:01:28]} 23. axb5 {[%clk 0:01:47]}  a4 {[%clk 0:01:28]} 24. g4 {[%clk 0:01:35]}  h6 {[%clk 0:01:04]} 25. g6 {[%clk 0:01:09]}  a3 {[%clk 0:01:03]} 26. Ng3 {[%clk 0:01:01]}  Rh8 {[%clk 0:01:01]} 27. Nh5+ {[%clk 0:00:56]}  Kg8 {[%clk 0:01:01]} 28. Rfb1 {[%clk 0:00:50]}  Ra4 {[%clk 0:00:55]} 29. Rb3 {[%clk 0:00:48]}  a2 {[%clk 0:00:55]} 30. Bf1 {[%clk 0:00:48]}  Nd7 {[%clk 0:00:37]} 31. Be2 {[%clk 0:00:42]}  Qd8 {[%clk 0:00:37]} 32. Bd1 {[%clk 0:00:26]}  Ra5 {[%clk 0:00:35]} 33. Rxb4 {[%clk 0:00:21]}  cxb4 {[%clk 0:00:34]} 34. Rxa2 {[%clk 0:00:21]}  Qa8 {[%clk 0:00:26]} 35. Rb2 {[%clk 0:00:17]}  Ra1 {[%clk 0:00:23]} 36. Bf3 {[%clk 0:00:12]}  Qa7 {[%clk 0:00:21]} 37. Bg2 {[%clk 0:00:13]}  Qg1+ {[%clk 0:00:15]} 38. Kh3 {[%clk 0:00:13]}  Re1 {[%clk 0:00:15]} 39. Ra2 {[%clk 0:00:05]}  Re3+ {[%clk 0:00:15]} 40. Ng3 {[%clk 0:00:06]}  Nb6 {[%clk 0:00:06]} 41. Ra6 {[%clk 0:00:05]}  h5 {[%clk 0:00:06]} 42. g5 {[%clk 0:00:05]}  fxg5 {[%clk 0:00:06]} 43. Qxe3 {[%clk 0:00:02]}  Qxe3 {[%clk 0:00:05]} 44. f6 {[%clk 0:00:02]}  h4 {[%clk 0:00:03]} 45. Kg4 {[%clk 0:00:01]}  Qf4+ {[%clk 0:00:03]} 0-1


[Site "https://www.chess.com"]

[Event "Titled Tuesday Blitz August 22 Late 2023"]
[White "Jaracz, Pawel"]
[Black "Vasquez Schroeder, Rodrigo"]
[WhiteFideId "1102222"]
[BlackFideId "3400042"]
[WhiteElo "2734"]
[BlackElo "2974"]
[Result "0-1"]
[Round "7"]
[TimeControl "180+1"]
[Date "2023.08.22"]
[WhiteClock "0:00:00"]
[BlackClock "0:00:55"]
[Board "14"]

1. e4 {[%clk 0:02:54]}  c5 {[%clk 0:02:59]} 2. Nf3 {[%clk 0:02:54]}  d6 {[%clk 0:03:00]} 3. Bb5+ {[%clk 0:02:50]}  Nd7 {[%clk 0:02:57]} 4. a4 {[%clk 0:02:47]}  Nf6 {[%clk 0:02:55]} 5. d3 {[%clk 0:02:41]}  g6 {[%clk 0:02:47]} 6. O-O {[%clk 0:02:41]}  Bg7 {[%clk 0:02:47]} 7. Re1 {[%clk 0:02:41]}  O-O {[%clk 0:02:47]} 8. Bxd7 {[%clk 0:02:41]}  Nxd7 {[%clk 0:02:46]} 9. c4 {[%clk 0:02:41]}  Nb8 {[%clk 0:02:46]} 10. d4 {[%clk 0:02:36]}  Bg4 {[%clk 0:02:44]} 11. d5 {[%clk 0:02:34]}  Na6 {[%clk 0:02:34]} 12. h3 {[%clk 0:02:33]}  Bxf3 {[%clk 0:02:32]} 13. Qxf3 {[%clk 0:02:33]}  Nb4 {[%clk 0:02:32]} 14. Qb3 {[%clk 0:02:18]}  e6 {[%clk 0:02:22]} 15. Bd2 {[%clk 0:02:17]}  exd5 {[%clk 0:02:21]} 16. cxd5 {[%clk 0:02:11]}  Rc8 {[%clk 0:02:07]} 17. Na3 {[%clk 0:02:10]}  Re8 {[%clk 0:02:05]} 18. Nc4 {[%clk 0:02:08]}  a5 {[%clk 0:02:01]} 19. Bxb4 {[%clk 0:01:59]}  cxb4 {[%clk 0:01:58]} 20. Qd3 {[%clk 0:01:59]}  Rxc4 {[%clk 0:01:47]} 21. Qxc4 {[%clk 0:01:58]}  Bxb2 {[%clk 0:01:48]} 22. Rad1 {[%clk 0:01:55]}  Qb6 {[%clk 0:01:44]} 23. Rd3 {[%clk 0:01:48]}  Be5 {[%clk 0:01:42]} 24. g3 {[%clk 0:01:43]}  Re7 {[%clk 0:01:37]} 25. Rc1 {[%clk 0:01:43]}  Bc3 {[%clk 0:01:36]} 26. Kg2 {[%clk 0:01:39]}  Kg7 {[%clk 0:01:35]} 27. f4 {[%clk 0:01:35]}  f6 {[%clk 0:01:34]} 28. Rb1 {[%clk 0:01:08]}  Rc7 {[%clk 0:01:27]} 29. Qb3 {[%clk 0:01:07]}  Qa6 {[%clk 0:01:26]} 30. Rbd1 {[%clk 0:00:52]}  b5 {[%clk 0:01:24]} 31. h4 {[%clk 0:00:35]}  Rc4 {[%clk 0:01:24]} 32. Kf3 {[%clk 0:00:28]}  Qb7 {[%clk 0:01:18]} 33. Re3 {[%clk 0:00:27]}  Qd7 {[%clk 0:01:13]} 34. g4 {[%clk 0:00:26]}  h5 {[%clk 0:01:12]} 35. Rg1 {[%clk 0:00:22]}  hxg4+ {[%clk 0:01:09]} 36. Rxg4 {[%clk 0:00:22]}  f5 {[%clk 0:01:09]} 37. exf5 {[%clk 0:00:19]}  Qxf5 {[%clk 0:01:07]} 38. Qd1 {[%clk 0:00:16]}  Be5 {[%clk 0:01:02]} 39. Kg2 {[%clk 0:00:07]}  Bxf4 {[%clk 0:00:57]} 40. Re7+ {[%clk 0:00:06]}  Kf8 {[%clk 0:00:57]} 41. Re6 {[%clk 0:00:05]}  Rc2+ {[%clk 0:00:57]} 42. Kh1 {[%clk 0:00:00]}  Be5 {[%clk 0:00:55]} 0-1


[Site "https://www.chess.com"]

[Event "Titled Tuesday Blitz August 22 Late 2023"]
[White "Pert, Richard G"]
[Black "Paravyan, David"]
[WhiteFideId "404748"]
[BlackFideId "4194985"]
[WhiteElo "2696"]
[BlackElo "2963"]
[Result "0-1"]
[Round "7"]
[TimeControl "180+1"]
[Date "2023.08.22"]
[WhiteClock "0:00:00"]
[BlackClock "0:00:15"]
[Board "19"]

1. d4 {[%clk 0:03:00]}  Nf6 {[%clk 0:02:59]} 2. Bg5 {[%clk 0:03:00]}  d5 {[%clk 0:02:58]} 3. e3 {[%clk 0:03:00]}  c5 {[%clk 0:02:58]} 4. Bxf6 {[%clk 0:03:00]}  gxf6 {[%clk 0:02:58]} 5. dxc5 {[%clk 0:03:00]}  Nc6 {[%clk 0:02:57]} 6. Bb5 {[%clk 0:02:59]}  e6 {[%clk 0:02:57]} 7. c4 {[%clk 0:02:59]}  dxc4 {[%clk 0:02:55]} 8. Nd2 {[%clk 0:02:59]}  Bxc5 {[%clk 0:02:53]} 9. Ngf3 {[%clk 0:02:56]}  O-O {[%clk 0:02:52]} 10. O-O {[%clk 0:02:47]}  Be7 {[%clk 0:02:52]} 11. Bxc4 {[%clk 0:02:17]}  Kh8 {[%clk 0:02:48]} 12. Qe2 {[%clk 0:02:12]}  f5 {[%clk 0:02:47]} 13. Rfd1 {[%clk 0:02:10]}  Qa5 {[%clk 0:02:40]} 14. a3 {[%clk 0:02:06]}  Bf6 {[%clk 0:02:39]} 15. b4 {[%clk 0:01:54]}  Qb6 {[%clk 0:02:38]} 16. Rab1 {[%clk 0:01:49]}  Bd7 {[%clk 0:02:36]} 17. Nb3 {[%clk 0:01:43]}  Rad8 {[%clk 0:02:35]} 18. Nc5 {[%clk 0:01:41]}  Bc8 {[%clk 0:02:35]} 19. h4 {[%clk 0:01:31]}  a5 {[%clk 0:02:32]} 20. Na4 {[%clk 0:01:27]}  Qc7 {[%clk 0:02:32]} 21. b5 {[%clk 0:01:25]}  Ne5 {[%clk 0:02:31]} 22. Nxe5 {[%clk 0:01:24]}  Qxe5 {[%clk 0:02:32]} 23. g3 {[%clk 0:01:21]}  Be7 {[%clk 0:02:28]} 24. Nb6 {[%clk 0:01:15]}  Bxa3 {[%clk 0:02:22]} 25. Rxd8 {[%clk 0:01:15]}  Rxd8 {[%clk 0:02:22]} 26. Rd1 {[%clk 0:01:11]}  Qc7 {[%clk 0:02:17]} 27. Rxd8+ {[%clk 0:01:04]}  Qxd8 {[%clk 0:02:18]} 28. Qd3 {[%clk 0:00:59]}  Qxb6 {[%clk 0:02:11]} 29. Qxa3 {[%clk 0:00:57]}  Qd8 {[%clk 0:01:58]} 30. b6 {[%clk 0:00:48]}  Kg7 {[%clk 0:01:22]} 31. Bf1 {[%clk 0:00:36]}  Bd7 {[%clk 0:01:13]} 32. Qd6 {[%clk 0:00:19]}  Qc8 {[%clk 0:01:09]} 33. h5 {[%clk 0:00:18]}  h6 {[%clk 0:01:08]} 34. Qe5+ {[%clk 0:00:16]}  Kh7 {[%clk 0:01:02]} 35. Qf6 {[%clk 0:00:11]}  Be8 {[%clk 0:00:48]} 36. g4 {[%clk 0:00:11]}  Qc5 {[%clk 0:00:40]} 37. g5 {[%clk 0:00:10]}  hxg5 {[%clk 0:00:32]} 38. Qxg5 {[%clk 0:00:08]}  Qf8 {[%clk 0:00:31]} 39. Bg2 {[%clk 0:00:06]}  a4 {[%clk 0:00:19]} 40. Bxb7 {[%clk 0:00:06]}  a3 {[%clk 0:00:19]} 41. Bd5 {[%clk 0:00:05]}  Bc6 {[%clk 0:00:13]} 42. Bxc6 {[%clk 0:00:02]}  a2 {[%clk 0:00:13]} 43. Qf6 {[%clk 0:00:01]}  Qg7+ {[%clk 0:00:14]} 44. Qxg7+ {[%clk 0:00:01]}  Kxg7 {[%clk 0:00:15]} 45. b7 {[%clk 0:00:00]}  a1=Q+ {[%clk 0:00:15]} 0-1


[Site "https://www.chess.com"]

[Event "Titled Tuesday Blitz August 22 Late 2023"]
[White "Dourerassou, Jonathan"]
[Black "Drygalov, Sergey"]
[WhiteFideId "628050"]
[BlackFideId "24171743"]
[WhiteElo "2695"]
[BlackElo "2940"]
[Result "1-0"]
[Round "7"]
[TimeControl "180+1"]
[Date "2023.08.22"]
[WhiteClock "0:01:06"]
[BlackClock "0:00:09"]
[Board "20"]

1. e4 {[%clk 0:03:00]}  c5 {[%clk 0:03:00]} 2. Nf3 {[%clk 0:03:00]}  d6 {[%clk 0:03:01]} 3. Bb5+ {[%clk 0:03:00]}  Nd7 {[%clk 0:03:01]} 4. O-O {[%clk 0:03:00]}  Nf6 {[%clk 0:03:01]} 5. Re1 {[%clk 0:03:00]}  a6 {[%clk 0:03:02]} 6. Bf1 {[%clk 0:03:00]}  e6 {[%clk 0:02:59]} 7. c3 {[%clk 0:03:00]}  b5 {[%clk 0:02:51]} 8. a4 {[%clk 0:02:57]}  b4 {[%clk 0:02:50]} 9. cxb4 {[%clk 0:02:52]}  cxb4 {[%clk 0:02:50]} 10. d4 {[%clk 0:02:52]}  Bb7 {[%clk 0:02:50]} 11. Nbd2 {[%clk 0:02:44]}  Be7 {[%clk 0:02:50]} 12. b3 {[%clk 0:02:45]}  O-O {[%clk 0:02:46]} 13. Bb2 {[%clk 0:02:45]}  Re8 {[%clk 0:02:40]} 14. h3 {[%clk 0:02:44]}  Rc8 {[%clk 0:02:37]} 15. Bd3 {[%clk 0:02:42]}  Bf8 {[%clk 0:02:32]} 16. Qe2 {[%clk 0:02:42]}  Ra8 {[%clk 0:02:20]} 17. Rac1 {[%clk 0:02:38]}  e5 {[%clk 0:02:17]} 18. Qe3 {[%clk 0:02:29]}  Nh5 {[%clk 0:02:09]} 19. dxe5 {[%clk 0:02:13]}  dxe5 {[%clk 0:02:08]} 20. Nc4 {[%clk 0:02:10]}  Bc5 {[%clk 0:02:05]} 21. Qg5 {[%clk 0:02:02]}  Qxg5 {[%clk 0:01:56]} 22. Nxg5 {[%clk 0:02:03]}  Nf4 {[%clk 0:01:46]} 23. Bf1 {[%clk 0:02:02]}  a5 {[%clk 0:01:46]} 24. Red1 {[%clk 0:01:48]}  Bd4 {[%clk 0:01:30]} 25. Bxd4 {[%clk 0:01:43]}  exd4 {[%clk 0:01:30]} 26. Nd6 {[%clk 0:01:43]}  Reb8 {[%clk 0:01:27]} 27. Rc7 {[%clk 0:01:42]}  Ne5 {[%clk 0:00:38]} 28. Rxb7 {[%clk 0:01:35]}  Rxb7 {[%clk 0:00:37]} 29. Nxb7 {[%clk 0:01:35]}  d3 {[%clk 0:00:38]} 30. g3 {[%clk 0:01:35]}  Ne2+ {[%clk 0:00:38]} 31. Kg2 {[%clk 0:01:26]}  Nc3 {[%clk 0:00:38]} 32. Rd2 {[%clk 0:01:22]}  h6 {[%clk 0:00:33]} 33. f4 {[%clk 0:01:20]}  Nc6 {[%clk 0:00:21]} 34. Nf3 {[%clk 0:01:19]}  Nxe4 {[%clk 0:00:19]} 35. Rxd3 {[%clk 0:01:19]}  Re8 {[%clk 0:00:20]} 36. Nd6 {[%clk 0:01:19]}  Nxd6 {[%clk 0:00:18]} 37. Rxd6 {[%clk 0:01:19]}  Ne7 {[%clk 0:00:19]} 38. Bb5 {[%clk 0:01:18]}  Rc8 {[%clk 0:00:18]} 39. Bc4 {[%clk 0:01:18]}  Nf5 {[%clk 0:00:18]} 40. Rd3 {[%clk 0:01:13]}  Kf8 {[%clk 0:00:15]} 41. g4 {[%clk 0:01:13]}  Ne7 {[%clk 0:00:13]} 42. Ne5 {[%clk 0:01:13]}  f6 {[%clk 0:00:14]} 43. Nd7+ {[%clk 0:01:08]}  Ke8 {[%clk 0:00:14]} 44. Nb6 {[%clk 0:01:08]}  Rb8 {[%clk 0:00:15]} 45. Nd5 {[%clk 0:01:08]}  Nc6 {[%clk 0:00:15]} 46. Bb5 {[%clk 0:01:08]}  Kd7 {[%clk 0:00:15]} 47. Nxb4+ {[%clk 0:01:07]}  Kc7 {[%clk 0:00:14]} 48. Nxc6 {[%clk 0:01:07]}  Re8 {[%clk 0:00:14]} 49. Nxa5 {[%clk 0:01:06]}  Re2+ {[%clk 0:00:14]} 50. Kf3 {[%clk 0:01:06]}  Rh2 {[%clk 0:00:14]} 51. Kg3 {[%clk 0:01:06]}  Rh1 {[%clk 0:00:14]} 52. Nc4 {[%clk 0:01:06]}  g5 {[%clk 0:00:14]} 53. Rd7+ {[%clk 0:01:06]}  Kb8 {[%clk 0:00:13]} 54. fxg5 {[%clk 0:01:06]}  fxg5 {[%clk 0:00:12]} 55. Bc6 {[%clk 0:01:06]}  Rg1+ {[%clk 0:00:11]} 56. Kf2 {[%clk 0:01:06]}  Rc1 {[%clk 0:00:09]} 57. Rb7+ {[%clk 0:01:06]}  Ka8 {[%clk 0:00:09]} 58. Nb6# {[%clk 0:01:06]} 1-0


[Site "https://www.chess.com"]